Cogmind - Beta 15 @@@ ROGUE MODE // 2025.07.04 @ 19:24:40 Player: beans Result: Destroyed by A4-YHF(R) with Subdweller Machine Gun Performance ------------- Evolutions (0) 0 Regions Visited (2) 400 Robots Destroyed (47) 235 Value Destroyed (978) 978 Prototype IDs (1) 20 Alien Tech Used (0) 0 Bonus (0) 0 TOTAL SCORE: 1633 Bonus ------- None Cogmind --------- Core Integrity 0/250 Matter 44/300 Energy 249/250 System Corruption 0% Temperature Cool (0) Movement Rolling (105) Ox1 Location -10/Subcaves Parts ------- > --- POWER (1) -------- Ion Engine > --- PROPULSION (2) --- Wheel Compact Wheel > --- UTILITY (2) ------ Large Storage Unit > --- WEAPON (2) ------- Heavy Assault Rifle Subdweller Shrapnel Launcher > --- INVENTORY (15) --- Improved Medium Laser Improved Medium Laser Light Assault Rifle Heavy Assault Rifle Heavy Assault Rifle Heavy Assault Rifle Barrage Gun Flamer Peak State ------------ > --- POWER ------------ Ion Engine > --- PROPULSION ------- Wheel Compact Wheel > --- UTILITY ---------- Large Storage Unit Core Shielding > --- WEAPON ----------- Improved Medium Laser Improved Medium Laser > --- INVENTORY -------- Light Assault Rifle Heavy Assault Rifle Heavy Assault Rifle Heavy Assault Rifle Rocket Launcher Rocket Launcher [Rating: 12] Favorites ----------- Power Light Ion Engine Engine Light Ion Engine Propulsion Compact Wheel Leg Aluminum Leg Wheel Compact Wheel Utility Large Storage Unit Storage Large Storage Unit Protection Core Shielding Weapon Improved Medium Laser Energy Gun Improved Medium Laser Ballistic Gun Light Assault Rifle Launcher Rocket Launcher Build | -11 -10 -10 ------- Run | Yrd Mat Sub Slots Evolved . | . . . Power . | . . . Propulsion . | . . . Utility . | . . . Weapon . | . . . Parts Attached 20 | 5 13 2 Power 2 | 1 1 . Engine 2 | 1 1 . Core . | . . . Reactor . | . . . Propulsion 5 | 2 3 . Treads . | . . . Leg 1 | . 1 . Wheel 4 | 2 2 . Hover . | . . . Flight . | . . . Utility 2 | . 2 . Device . | . . . Storage 1 | . 1 . Processor . | . . . Hackware . | . . . Protection 1 | . 1 . Artifact . | . . . Weapon 11 | 2 7 2 Energy Gun 3 | 1 2 . Energy Cannon . | . . . Ballistic Gun 3 | 1 1 1 Ballistic Cannon . | . . . Launcher 5 | . 4 1 Special Weapon . | . . . Impact Weapon . | . . . Slashing Weapon . | . . . Piercing Weapon . | . . . Special Melee Weapon . | . . . Unidentified Prototypes 1 | . 1 . Parts Lost 8 | . 5 3 Power 1 | . 1 . Propulsion 2 | . 2 . Utility 1 | . . 1 Weapon 4 | . 2 2 Highest Loss Streak 2 | . 2 1 To Critical Strikes . | . . . Average Backups 5 | . 3 8 Power . | . . . Propulsion . | . . . Utility . | . . . Weapon 5 | . 3 8 Tool/Special . | . . . Unused Backups 6 | . 1 5 Power . | . . . Propulsion . | . . . Utility . | . . . Weapon 6 | . 1 5 Tool/Special . | . . . Average Slot Usage (%) 79 | . 75 87 Engine 13 | . 13 14 Leg 5 | . 7 . Wheel 12 | . 5 28 Storage 10 | . 9 14 Protection 8 | . 11 2 Energy Gun 14 | . 19 2 Launcher 13 | . 8 25 Peak Build Rating 12 | 5 12 12 Average Rating 9 | 3 8 9 On Entrance 5 | . 5 12 Naked Turns . | . . . Heaviest Build 37 | 6 32 37 Greatest Support 32 | 32 32 26 Greatest Overweight (x) 10 | . 10 1 Average Overweight (x) 1 | . 1 1 Largest Inventory Capacity 15 | 5 15 15 Average Capacity 12 | 5 11 15 Most Carried 10 | 3 7 10 Average Carried 5 | . 3 8 Final Capacity 15 | 5 15 15 Final Carried 8 | . 7 8 Class Distribution -------------------- 100% | Mutant Dominant Class ---------------- Mutant | -10/Materials Mutant | -10/Subcaves Resources | -11 -10 -10 ----------- Run | Yrd Mat Sub Matter Collected 988 | 240 518 230 Remotely . | . . . Salvage Created 943 | . 730 213 Parts 71 | . 58 13 Haulers Intercepted . | . . . Recyclers Shooed 1 | . 1 . Parts Field Recycled . | . . . Retrieved Matter . | . . . Parts Self-Destructed 10 | . . 10 Prevented . | . . . Kills | -11 -10 -10 ------- Run | Yrd Mat Sub Combat Hostiles Destroyed 33 | . 21 12 Guns 10 | . 9 1 AOE 22 | . 12 10 Classes Destroyed 9 | . 6 3 Worker 7 | . 7 . Tunneler 1 | . 1 . Recycler 3 | . 3 . Watcher 3 | . 3 . Swarmer 14 | . 12 2 Grunt 10 | . 9 1 Sentry 1 | . . 1 Artisan 1 | . . 1 Subdweller 8 | . . 8 Best Kill Streak 4 | . 4 3 Combat Bots Only 4 | . 4 3 Max Kills in Single Turn 3 | . 3 2 Gunslinging . | . . . Exploded 3 | . 3 2 Melee . | . . . Uniques/NPCs Destroyed . | . . . Combat | -11 -10 -10 -------- Run | Yrd Mat Sub Hostile Shots Fired 86 | . 52 34 Missed 26 | . 12 14 Hits 60 | . 40 20 Projectile 60 | . 40 20 Damage Taken 1076 | . 581 495 Core 266 | . 134 132 Absorbed by Shields . | . . . Redirected to Shielding 42 | . 19 23 Core Remaining (%) 100 | 100 . . Volleys Fired 93 | . 66 27 Largest 2 | . 2 2 Hottest 112 | . 112 112 Shots Fired 184 | . 132 52 Gun 119 | . 100 19 Cannon . | . . . Launcher 65 | . 32 33 Special . | . . . Kinetic 17 | . 6 11 Thermal 107 | . 89 18 Explosive 55 | . 32 23 Electromagnetic 5 | . 5 . Robot Hit Streak 18 | . 6 18 Robot Miss Streak 4 | . 4 1 Penetration Max . | . . . Secondary Targets . | . . . Shots Hit Robots 74 | . 51 23 Core Hits 67 | . 47 20 Critical Kills . | . . . Critical Parts Destroyed . | . . . Critical Strikes 11 | . 7 4 Burn 11 | . 7 4 Melee Attacks . | . . . Impact . | . . . Slashing . | . . . Piercing . | . . . Sneak Attacks . | . . . Combat Hostiles . | . . . Follow-up Attacks . | . . . Damage Inflicted 3775 | . 1993 1782 Guns 1109 | . 837 272 Cannons . | . . . Explosions 2666 | . 1156 1510 Melee . | . . . Ramming . | . . . Kinetic 664 | . 24 640 Thermal 1074 | . 802 272 Explosive 2026 | . 1156 870 Electromagnetic 11 | . 11 . Impact . | . . . Slashing . | . . . Piercing . | . . . Highest Corruption . | . . . Average Corruption . | . . . Corruption Purged . | . . . Corruption Blocked . | . . . Overload Shots . | . . . Overflow Damage 27 | . 24 3 Projectiles . | . . . Explosions 27 | . 24 3 Melee . | . . . Knockbacks . | . . . Impact . | . . . Kinetic . | . . . Secondary . | . . . Self-Inflicted Damage 225 | . 155 70 Shots 7 | . 4 3 Rammed . | . . . Targets Rammed . | . . . Kicked . | . . . Crushed . | . . . Highest Temperature 255 | . 255 . Average Temperature 72 | . 72 . Received Heat Transfer 18 | . 18 . Effects 1 | . 1 . Energy Bleed 1 | . 1 . Siege Activations . | . . . Martial Activations . | . . . Shielding Activations . | . . . Robots Disrupted . | . . . Combat Hostiles . | . . . Robots Corrupted . | . . . Combat Hostiles . | . . . Parts Fried . | . . . Impact Corruptions . | . . . Robots Melted 1 | . . 1 Combat Hostiles 1 | . . 1 Parts Melted 4 | . 4 . Heat Transferred 3145 | . 2257 888 Parts Sabotaged . | . . . Parts Stolen . | . . . Parts Stripped . | . . . Power Chain Reactions . | . . . Alert | -11 -10 -10 ------- Run | Yrd Mat Sub Maximum Alert Level 1 | . 1 . Low Security (%) 82 | 100 82 . Level 1 17 | . 17 . Level 2 . | . . . Level 3 . | . . . Level 4 . | . . . Level 5 . | . . . High Security . | . . . Max Security . | . . . Peak Influence 280 | . 280 . Initial . | . . . Average 128 | . 130 . Influence Increases 909 | . 789 120 Destroy 0b10 Robot/C 500 | . 420 80 Destroy 0b10 Robot/NC 70 | . 70 . Destroy Leader 96 | . 86 10 Disable Machine 60 | . 60 . Destroy Structure 153 | . 153 . Lose Combat Pursuer 30 | . . 30 Influence Decreases 869 | . 727 142 Entered New Map 30 | . . 30 Time Decay 737 | . 635 102 Lost Part 60 | . 50 10 Purge Threat 42 | . 42 . Squads Dispatched 3 | . 3 . Investigation 1 | . 1 . Extermination . | . . . Reinforcement 2 | . 2 . Assault . | . . . Garrison . | . . . Intercept . | . . . Searches Triggered . | . . . Construction Impeded . | . . . Haulers Reinforced . | . . . Active Scanning Responses . | . . . Cargo Convoy Interrupts . | . . . Stealth | -11 -10 -10 --------- Run | Yrd Mat Sub Distress Signals 2 | . 2 . Communications Jammed . | . . . Distress Signals . | . . . Times Spotted 45 | . 29 16 Peak Tracking Total 7 | . 4 7 Tactical Retreats 1 | . . 1 Traps | -11 -10 -10 ------- Run | Yrd Mat Sub Traps Triggered 3 | . 3 . Indirectly . | . . . Trap Hack Attempts . | . . . Triggered . | . . . Disarmed . | . . . Reprogrammed . | . . . Reused . | . . . Traps Extracted . | . . . Installed . | . . . Triggered . | . . . Machines | -11 -10 -10 ---------- Run | Yrd Mat Sub Machines Disabled 10 | . 7 3 Max in Single Turn 3 | . 3 2 Machines Repaired . | . . . Machines Dismantled . | . . . Machines Sabotaged . | . . . Overloaded Fab Kills . | . . . Hacking | -11 -10 -10 --------- Run | Yrd Mat Sub Machines Accessed 1 | . 1 . Terminals 1 | . 1 . Fabricators . | . . . Repair Stations . | . . . Recycling Units . | . . . Scanalyzers . | . . . Garrison Access . | . . . Total Hacks 3 | . 3 . Successful 1 | . 1 . Failed 2 | . 2 . Catastrophic . | . . . Database Lockouts . | . . . Manual . | . . . Terminals 3 | . 3 . Fabricators . | . . . Repair Stations . | . . . Recycling Units . | . . . Scanalyzers . | . . . Garrison Access . | . . . Terminal Hacks 1 | . 1 . Unreport Threat 1 | . 1 . Fabricator Hacks . | . . . Repair Station Hacks . | . . . Recycling Unit Hacks . | . . . Scanalyzer . | . . . Garrison Access Hacks . | . . . Unauthorized Hacks . | . . . Terminals . | . . . Fabricators . | . . . Repair Stations . | . . . Recycling Units . | . . . Scanalyzers . | . . . Garrison Access . | . . . Data Cores Recovered . | . . . Used . | . . . Hacking Detections 1 | . 1 . Full Trace Events 1 | . 1 . Feedback Events . | . . . Feedback Blocked . | . . . Robot Schematics Acquired . | . . . Robots Built . | . . . Authchips . | . . . Time . | . . . Total Robot Build Rating . | . . . Part Schematics Acquired . | . . . Parts Built . | . . . Authchips . | . . . Time . | . . . Total Part Build Rating . | . . . Parts Repaired . | . . . Time . | . . . Parts Recycled . | . . . Recycled Matter . | . . . Retrieved Matter . | . . . Retrieved Components . | . . . Parts Scanalyzed . | . . . Part Schematics Acquired . | . . . Parts Damaged . | . . . Bothacking | -11 -10 -10 ------------ Run | Yrd Mat Sub Used RIF Installer . | . . . Robots Hacked . | . . . Non-combat . | . . . Combat . | . . . Robot Hacks Applied . | . . . Relay Couplers Released . | . . . Fabnet Peak Effective % . | . . . Robots Rewired . | . . . Allies Hacked . | . . . Hacks Repelled . | . . . Allies | -11 -10 -10 -------- Run | Yrd Mat Sub Total Allies . | . . . Largest Group . | . . . Highest-Rated Group . | . . . Highest-Rated Ally . | . . . Total Orders . | . . . Ally Attacks . | . . . Total Damage . | . . . Kills . | . . . Allies Corrupted . | . . . Allies Melted . | . . . Intel | -11 -10 -10 ------- Run | Yrd Mat Sub Active Infowar (turns) . | . . . Robot Analysis Total . | . . . Derelict Logs Recovered . | . . . Drone Launches . | . . . Drone Recoveries . | . . . Exploration | -11 -10 -10 ------------- Run | Yrd Mat Sub Turns Passed 3861 | 42 2665 1154 Spaces Moved 2089 | 36 1181 872 Core 97 | 7 90 . Treads . | . . . Legs 535 | . 535 . Wheels 1457 | 29 556 872 Hover . | . . . Flight . | . . . Fastest Speed 50 | 50 100 105 Average Speed 157 | 90 197 105 Slowest Speed 550 | 100 550 105 Overloaded Moves . | . . . Propulsion Burnouts . | . . . Robots Hopped . | . . . Potential Cave-ins . | . . . Cave-ins Triggered . | . . . Exploration Rate (%) 58 | 3 100 73 Regions Visited 2 Branch Regions 1 Pre-discovered Areas 1 | . . 1 Known Exits Taken . | . . . Unknown Exits Taken 2 | 1 1 . Scrap Searched 2 | . . 2 Spaces Dug 20 | . 16 4 Terrain Destroyed 383 | . 188 195 Melee . | . . . Projectile . | . . . AOE 383 | . 188 195 Terrain Rammed . | . . . Walls Destroyed . | . . . Machines Disabled . | . . . Actions | -11 -10 -10 --------- Run | Yrd Mat Sub Total 2477 | 45 1374 1058 Wait 244 | . 92 152 Move 2087 | 35 1180 872 Hop . | . . . Pick Up 24 | 5 16 3 Fast Attach 2 | . 2 . Attach 13 | 5 6 2 Detach . | . . . Swap 10 | . 8 2 Drop 4 | . 4 . Fire 93 | . 66 27 Melee . | . . . Ram . | . . . Kick . | . . . Crush . | . . . Escape Stasis . | . . . Rewire . | . . . Trap . | . . . Miscellaneous . | . . . Route ------- -11/Scrapyard -10/Materials (discovered 5 exits: [*Mat x3] / [*Min] / [*Sub]) -10/Subcaves (discovered 2 exits: [*Mat] / [*Rec]) History --------- Turn | Location | Event 3 | -11/Scrapyard | Discovered new exit (range 16) 43 | -11/Scrapyard | Entered Materials 320 | -10/Materials | Build established: Mutant 416 | -10/Materials | Discovered new exit (range 14) 465 | -10/Materials | Discovered new exit (range 11) 543 | -10/Materials | Derelicts attacked the area 781 | -10/Materials | Discovered new exit (range 14) 1314 | -10/Materials | Discovered new exit (range 5) 1905 | -10/Materials | Discovered new exit (range 15) 2060 | -10/Materials | Core integrity fell below 50% 2708 | -10/Materials | Entered Subcaves 2709 | -10/Subcaves | Approached by a straggling Scientist 2746 | -10/Subcaves | Shifting Twisted Machinery released Flamer 2802 | -10/Subcaves | Core integrity fell below 20% 2935 | -10/Subcaves | Shifting Twisted Machinery released Sub. Shrapnel Launcher 2940 | -10/Subcaves | Shifting Twisted Machinery released Sub. Beam Cannon 3157 | -10/Subcaves | A swath of the cavern ceiling suddenly collapsed 3331 | -10/Subcaves | Ambushed by Subdweller buried in earth 3514 | -10/Subcaves | Learned location of Zion (-7) 3514 | -10/Subcaves | Met a Zionite searching for "candidates" 3704 | -10/Subcaves | Shifting Twisted Machinery released Scrap Shield 3842 | -10/Subcaves | Discovered new exit (range 9) 3851 | -10/Subcaves | Ambushed by Subdweller buried in earth 3854 | -10/Subcaves | Discovered new exit (range 8) 3855 | -10/Subcaves | Ambushed by angry Subdweller bent on revenge 3862 | -10/Subcaves | Destroyed by A4-YHF(R) with Subdweller Machine Gun Last Messages --------------- N0-FAR(R) destroyed. Destroyed Scrap Shield. 38-MN1(R) destroyed. 2S-PZT(R): "ARGHSUB!" 2S-PZT(R) destroyed. The unstable cave ceiling collapses. Acquired 49 matter. Acquired 41 matter. EXIT=FOUND HX-4M0(R) destroyed. JT-SKW(R) destroyed. A4-YHF(R): "ARGHSUB!" EXIT=FOUND S-10 Pest springs to life. QR-73C(R): "MADSUB!" Destroyed Lgt. Assault Rifle. The unstable cave ceiling collapses. QR-73C(R) suffers critical hit (Destroy). QR-73C(R) destroyed. Rocket Launcher destroyed. Map ----- +----------------------------------------------------+ | #???????????????????????????????????????????? | | ##???????????????????????????????????????????? | | ##????????????????????????????????????????????? | | #?????????????????????????????????????????????? | | ##?????????????????????????????????????????????? | | #####??????????????????????????????????????????? | | ##?????????????????????????????????????????? | | #?????????????????????????????????????????? | | #?????????????????????????????????????????? | | ### #????????????????????????????????????????? | | #?# #????????????????????????????????????????? | | ??# ##????????????????????????????????????????? | | ??### #?????????????????????????????????????????? | | ????####?????????????????????????????????????????? | | ?????????????????????????????????????????????????? | | ?????????????????????????????????????????????????? | | ?????????????????????????????????????????????????? | | ?????????????????????????????????????????????????? | | ?????????????????????????????????????????????????? | | ????????????????#????????????????????????????????? | | ?????????????#### #####???###????????????????????? | | ?????????????# ; ###;;######???????????????? | | ????????????## # ;# #"#???????????????? | | ????????????#; ; " #????????????????? | | ??????????" | ; # #????????????????? | | ??????????%& %< %! @ #### #????????????????? | | ??????????& &R ### #????????????????? | | ??????????" ## ##???????????????? | | ??????????? # ;### #???????????????? | | ??????????? # # ##;;;### #???????????????? | | ???????????? #??###### ##???????????????? | | ???????????? s????????# ##???????????????? | | ???????????? ?????????# #???????????????? | | ?????????????#; ??????????# #???????????????? | | ????????????? ???????????## ##???????????????? | | ?????????????? ????????????## #???????????????? | | ?????????????? ?????????##### ##???????????????? | | ?????????????????????????# # ###??????????????? | | ????????????????????????## #??????????????? | | ???????????????????????## #??????????????? | | ???????????????????????# #??????????????? | | ???????????????????????### #??????????????? | | ?????????????????????????## ## #??????????????? | | ?????????????????????????# # #??????????????? | | ?????????????????????????## ##??????????????# | | ??????????????????????????# ## #???????????????# | | ??????????????????????????# # #???????????????# | | ??????????????????????????# ## #???????????????# | | ?????????????????????????? ## #???????????????# | | ?????????????????????????? ## ########?######### | +----------------------------------------------------+ Best States ------------- Heat Dissipation 25 Energy Generation 10 Energy Capacity 250 Matter Stores 300 Matter Capacity 300 Sight Range 16 Terrain Scan Density 10 Core Shielding 20 Evasion (%) 55 Item Schematics ----------------- None Robot Schematics ------------------ None Fabricated ------------ Nothing Repaired ---------- Nothing Alien Tech Used ----------------- None Achievements -------------- None Challenges ------------ None Game ------ Seed ShrapnelDroneMatrix Manual? 0 Play Time 00:19:26 Cumulative 38.2 hours Start 2025.07.04 @ 19:08:07 End 2025.07.04 @ 19:24:40 Sessions 1 Manual Loads 0 Difficulty Rogue Special Mode None Game No. 179 Rogue 179 Adventurer 0 Explorer 0 Win Type - Total 0 Types 0/0/0/0/0/0/0/0/0/0 Lore% 28 Gallery% 24 Achievement% 20 Wizard Run 0 Options --------- Layout 2 ASCII 0 Keyboard 0 Movement Mouse Keybinds 0 Fullscreen 1 Font 24/Smallcaps Map View 50x44 Zoom Use 0% Tactical HUD 0 Map Filters NONE Filters NONE Steam 1 RUN: 257f5ee9-9932-45fc-beb4-4592e47d1c46